Cogmind - Beta 13 @@@ ROGUE MODE // 2024.02.29 @ 06:52:10 Player: Takagiro Result: Destroyed by Y-45 Defender with Beam Rifle Performance ------------- Evolutions (2) 1000 Regions Visited (3) 600 Robots Destroyed (24) 120 Value Destroyed (687) 687 Prototype IDs (1) 20 Alien Tech Used (0) 0 Bonus (0) 0 TOTAL SCORE: 2427 Bonus ------- None Cogmind --------- Core Integrity 0/550 Matter 175/300 Energy 275/275 System Corruption 0% Temperature Cool (38) Movement Core (250) Ox4 Location -8/Materials Parts ------- > --- POWER (1) -------- Deuterium Engine > --- PROPULSION (2) --- (None) > --- UTILITY (6) ------ (None) > --- WEAPON (2) ------- Beam Rifle Beam Rifle > --- INVENTORY (5) ---- Deuterium Engine Deuterium Engine EM Pulse Gun Peak State ------------ > --- POWER ------------ Light Nuclear Core > --- PROPULSION ------- Improved VTOL Module > --- UTILITY ---------- Field Recycling Unit > --- WEAPON ----------- Beam Rifle Beam Rifle > --- INVENTORY -------- Weight Redist. System EM Pulse Gun Grenade Launcher [Rating: 13] Favorites ----------- Power Ion Engine Engine Ion Engine Power Core Light Nuclear Core Propulsion Compact Wheel Wheel Compact Wheel Flight Unit Improved VTOL Module Utility Field Recycling Unit Device Field Recycling Unit Storage Small Battery Protection Utility Shielding Weapon Beam Rifle Energy Gun Beam Rifle Energy Cannon Light EM Pulse Cannon Ballistic Gun Assault Rifle Launcher Grenade Launcher Build | -11 -10 -9 -8 ------- Run | Yrd Mat Mat Mat Slots Evolved 4 | . . 2 2 Power . | . . . . Propulsion . | . . . . Utility 4 | . . 2 2 Weapon . | . . . . Parts Attached 21 | 3 4 9 5 Power 3 | 1 . 1 1 Engine 2 | 1 . . 1 Core 1 | . . 1 . Reactor . | . . . . Propulsion 3 | 1 . 2 . Treads . | . . . . Leg . | . . . . Wheel 2 | 1 . 1 . Hover . | . . . . Flight 1 | . . 1 . Utility 6 | . 3 2 1 Device 4 | . 2 1 1 Storage 1 | . . 1 . Processor . | . . . . Hackware . | . . . . Protection 1 | . 1 . . Artifact . | . . . . Weapon 9 | 1 1 4 3 Energy Gun 4 | . . 2 2 Energy Cannon 1 | . . 1 . Ballistic Gun 3 | 1 1 1 . Ballistic Cannon . | . . . . Launcher 1 | . . . 1 Special Weapon . | . . . . Impact Weapon . | . . . . Slashing Weapon . | . . . . Piercing Weapon . | . . . . Special Melee Weapon . | . . . . Unidentified Prototypes 1 | . . 1 . Parts Lost 13 | . 1 7 5 Power 2 | . . 2 . Propulsion 1 | . . 1 . Utility 3 | . . 1 2 Weapon 7 | . 1 3 3 Highest Loss Streak 6 | . 1 6 4 To Critical Strikes . | . . . . Average Slot Usage (%) 48 | . 63 51 29 Engine 7 | . 14 3 4 Core 1 | . . 4 . Wheel 6 | . 14 2 1 Flight 1 | . . 3 . Device 11 | . 10 14 9 Protection 1 | . 3 . . Energy Gun 7 | . . 11 11 Ballistic Gun 10 | . 20 7 . Launcher 1 | . . . 3 Naked Turns 5 | . . . 5 Heaviest Build 19 | 7 18 19 15 Greatest Support 22 | 16 22 22 10 Greatest Overweight (x) 6 | . 1 6 4 Average Overweight (x) . | . . 1 2 Largest Inventory Capacity 5 | 5 5 5 5 Average Capacity 5 | 5 5 5 5 Most Carried 5 | 4 5 5 5 Average Carried 4 | 2 4 4 4 Final Capacity 5 | 5 5 5 5 Final Carried 5 | 3 5 5 3 Class Distribution -------------------- 100% | Mutant Dominant Class ---------------- Mutant | -10/Materials Mutant | -9/Materials Mutant | -8/Materials Resources | -11 -10 -9 -8 ----------- Run | Yrd Mat Mat Mat Matter Collected 489 | 209 175 105 . Remotely . | . . . . Salvage Created 735 | . 325 197 213 Parts 40 | . 21 13 6 Haulers Intercepted . | . . . . Recyclers Shooed . | . . . . Parts Field Recycled 2 | . . . 2 Retrieved Matter 8 | . . . 8 Parts Self-Destructed . | . . . . Prevented . | . . . . Kills | -11 -10 -9 -8 ------- Run | Yrd Mat Mat Mat Combat Hostiles Destroyed 21 | . 9 6 6 Guns 14 | . 9 5 . Cannons 1 | . . 1 . AOE 6 | . . . 6 Classes Destroyed 5 | . 3 2 . Worker 1 | . . 1 . Watcher 2 | . 1 1 . Swarmer 7 | . 3 4 . Grunt 13 | . 6 1 6 Sentry 1 | . . 1 . Best Kill Streak 4 | . 4 4 3 Combat Bots Only 4 | . 3 4 3 Max Kills in Single Turn 2 | . 1 1 2 Gunslinging . | . . . . Exploded 2 | . . . 2 Melee . | . . . . Uniques/NPCs Destroyed . | . . . . Combat | -11 -10 -9 -8 -------- Run | Yrd Mat Mat Mat Hostile Shots Fired 186 | . 46 61 79 Missed 47 | . 13 13 21 Damage Taken 1991 | . 388 603 1000 Core 927 | . 106 258 563 Absorbed by Shields . | . . . . Core Remaining (%) 64 | 100 57 35 . Volleys Fired 67 | . 30 25 12 Largest 2 | . 2 2 2 Hottest 112 | . 40 112 112 Shots Fired 101 | . 48 38 15 Gun 88 | . 48 34 6 Cannon 4 | . . 4 . Launcher 9 | . . . 9 Special . | . . . . Kinetic 66 | . 48 18 . Thermal 22 | . . 16 6 Explosive 9 | . . . 9 Electromagnetic 4 | . . 4 . Robot Hit Streak 12 | . 6 12 8 Robot Miss Streak 3 | . 3 3 1 Penetration Max . | . . . . Secondary Targets . | . . . . Shots Hit Robots 67 | . 30 26 11 Core Hits 41 | . 17 11 13 Critical Kills . | . . . . Critical Parts Destroyed . | . . . . Critical Strikes . | . . . . Melee Attacks . | . . . . Impact . | . . . . Slashing . | . . . . Piercing . | . . . . Sneak Attacks . | . . . . Combat Hostiles . | . . . . Follow-up Attacks . | . . . . Damage Inflicted 1269 | . 406 336 527 Guns 730 | . 406 280 44 Cannons 56 | . . 56 . Explosions 479 | . . . 479 Melee . | . . . . Ramming 4 | . . . 4 Kinetic 510 | . 406 104 . Thermal 220 | . . 176 44 Explosive 479 | . . . 479 Electromagnetic 56 | . . 56 . Impact . | . . . . Slashing . | . . . . Piercing . | . . . . Highest Corruption . | . . . . Average Corruption . | . . . . Corruption Purged . | . . . . Corruption Blocked . | . . . . Overload Shots . | . . . . Overflow Damage . | . . . . Projectiles . | . . . . Explosions . | . . . . Melee . | . . . . Knockbacks . | . . . . Impact . | . . . . Kinetic . | . . . . Secondary . | . . . . Self-Inflicted Damage 31 | . . . 31 Shots 1 | . . . 1 Rammed 3 | . . . 3 Targets Rammed 3 | . . . 3 Kicked . | . . . . Crushed . | . . . . Highest Temperature 186 | . 45 186 54 Average Temperature 54 | . 20 77 25 Received Heat Transfer 870 | . 138 192 540 Siege Activations . | . . . . Robots Corrupted . | . . . . Combat Hostiles . | . . . . Parts Fried . | . . . . Impact Corruptions . | . . . . Robots Melted . | . . . . Combat Hostiles . | . . . . Parts Melted . | . . . . Heat Transferred 555 | . . 444 111 Parts Sabotaged . | . . . . Parts Stolen . | . . . . Parts Stripped . | . . . . Power Chain Reactions . | . . . . Alert | -11 -10 -9 -8 ------- Run | Yrd Mat Mat Mat Peak Influence 276 | . 259 231 276 Initial 104 | . . 104 97 Average 139 | . 132 172 138 Maximum Alert Level 1 | . 1 1 1 Low Security (%) 71 | 100 75 48 83 Level 1 28 | . 24 51 16 Level 2 . | . . . . Level 3 . | . . . . Level 4 . | . . . . Level 5 . | . . . . High Security . | . . . . Max Security . | . . . . Squads Dispatched 5 | . 3 1 1 Investigation 1 | . 1 . . Extermination . | . . . . Reinforcement 4 | . 2 1 1 Assault . | . . . . Garrison . | . . . . Intercept . | . . . . Searches Triggered . | . . . . Construction Impeded . | . . . . Haulers Reinforced . | . . . . Active Scanning Responses . | . . . . Cargo Convoy Interrupts . | . . . . Stealth | -11 -10 -9 -8 --------- Run | Yrd Mat Mat Mat Distress Signals . | . . . . Communications Jammed . | . . . . Distress Signals . | . . . . Times Spotted 30 | . 12 7 11 Peak Tracking Total 5 | . 4 5 5 Tactical Retreats . | . . . . Traps | -11 -10 -9 -8 ------- Run | Yrd Mat Mat Mat Traps Triggered 2 | . 2 . . Indirectly . | . . . . Trap Hack Attempts . | . . . . Triggered . | . . . . Disarmed . | . . . . Reprogrammed . | . . . . Reused . | . . . . Traps Extracted . | . . . . Installed . | . . . . Triggered . | . . . . Machines | -11 -10 -9 -8 ---------- Run | Yrd Mat Mat Mat Machines Disabled . | . . . . Max in Single Turn . | . . . . Machines Repaired . | . . . . Machines Dismantled . | . . . . Machines Sabotaged . | . . . . Overloaded Fab Kills . | . . . . Hacking | -11 -10 -9 -8 --------- Run | Yrd Mat Mat Mat Machines Accessed 2 | . 2 . . Terminals 1 | . 1 . . Fabricators . | . . . . Repair Stations . | . . . . Recycling Units 1 | . 1 . . Scanalyzers . | . . . . Garrison Access . | . . . . Total Hacks 5 | . 5 . . Successful 2 | . 2 . . Failed 3 | . 3 . . Catastrophic 1 | . 1 . . Database Lockouts . | . . . . Manual . | . . . . Terminals 3 | . 3 . . Fabricators . | . . . . Repair Stations . | . . . . Recycling Units 2 | . 2 . . Scanalyzers . | . . . . Garrison Access . | . . . . Terminal Hacks 1 | . 1 . . Registered Components 1 | . 1 . . Fabricator Hacks . | . . . . Repair Station Hacks . | . . . . Recycling Unit Hacks 1 | . 1 . . Retrieve Components 1 | . 1 . . Scanalyzer . | . . . . Garrison Access Hacks . | . . . . Unauthorized Hacks . | . . . . Terminals . | . . . . Fabricators . | . . . . Repair Stations . | . . . . Recycling Units . | . . . . Scanalyzers . | . . . . Garrison Access . | . . . . Data Cores Recovered . | . . . . Used . | . . . . Hacking Detections 1 | . 1 . . Full Trace Events . | . . . . Feedback Events . | . . . . Feedback Blocked . | . . . . Robot Schematics Acquired . | . . . . Robots Built . | . . . . Authchips . | . . . . Time . | . . . . Total Robot Build Rating . | . . . . Part Schematics Acquired . | . . . . Parts Built . | . . . . Authchips . | . . . . Time . | . . . . Total Part Build Rating . | . . . . Parts Repaired . | . . . . Time . | . . . . Parts Recycled . | . . . . Recycled Matter . | . . . . Retrieved Matter . | . . . . Retrieved Components 9 | . 9 . . Parts Scanalyzed . | . . . . Part Schematics Acquired . | . . . . Parts Damaged . | . . . . Bothacking | -11 -10 -9 -8 ------------ Run | Yrd Mat Mat Mat Used RIF Installer . | . . . . Robots Hacked . | . . . . Non-combat . | . . . . Combat . | . . . . Robot Hacks Applied . | . . . . Relay Couplers Released . | . . . . Fabnet Peak Effective % . | . . . . Robots Rewired . | . . . . Allies Hacked . | . . . . Hacks Repelled . | . . . . Allies | -11 -10 -9 -8 -------- Run | Yrd Mat Mat Mat Total Allies . | . . . . Largest Group . | . . . . Highest-Rated Group . | . . . . Highest-Rated Ally . | . . . . Total Orders . | . . . . Ally Attacks . | . . . . Total Damage . | . . . . Kills . | . . . . Allies Corrupted . | . . . . Allies Melted . | . . . . Intel | -11 -10 -9 -8 ------- Run | Yrd Mat Mat Mat Robot Analysis Total . | . . . . Derelict Logs Recovered . | . . . . Drone Launches . | . . . . Drone Recoveries . | . . . . Exploration | -11 -10 -9 -8 ------------- Run | Yrd Mat Mat Mat Turns Passed 890 | 40 323 260 267 Spaces Moved 501 | 33 226 124 118 Core 101 | 5 . 23 73 Treads . | . . . . Legs . | . . . . Wheels 363 | 28 226 64 45 Hover . | . . . . Flight 37 | . . 37 . Fastest Speed 50 | 50 100 95 50 Average Speed 124 | 92 100 144 159 Slowest Speed 350 | 100 115 350 250 Overloaded Moves . | . . . . Propulsion Burnouts . | . . . . Robots Hopped . | . . . . Cave-ins Triggered . | . . . . Exploration Rate (%) 20 | 4 40 18 18 Regions Visited 3 Branch Regions . Pre-discovered Areas . | . . . . Known Exits Taken . | . . . . Unknown Exits Taken 3 | 1 1 1 . Scrap Searched . | . . . . Spaces Dug . | . . . . Terrain Destroyed 51 | . . . 51 Melee . | . . . . Projectile . | . . . . AOE 51 | . . . 51 Terrain Rammed . | . . . . Walls Destroyed . | . . . . Machines Disabled . | . . . . Actions | -11 -10 -9 -8 --------- Run | Yrd Mat Mat Mat Total 667 | 43 276 169 179 Wait 44 | . 3 4 37 Move 498 | 32 225 123 118 Hop . | . . . . Pick Up 23 | 7 9 5 2 Fast Attach 6 | . 1 3 2 Attach 15 | 3 3 6 3 Detach 1 | . . 1 . Swap . | . . . . Drop 10 | 1 5 2 2 Fire 67 | . 30 25 12 Melee . | . . . . Ram 3 | . . . 3 Kick . | . . . . Crush . | . . . . Escape Stasis . | . . . . Rewire . | . . . . Trap . | . . . . Miscellaneous . | . . . . Route ------- -11/Scrapyard -10/Materials -9/Materials -8/Materials History --------- Turn | Location | Event 12 | -11/Scrapyard | Discovered new exit (range 15) 41 | -11/Scrapyard | Entered Materials 301 | -10/Materials | Build established: Mutant 359 | -10/Materials | Discovered new exit (range 5) 364 | -10/Materials | Entered another Materials area 364 | -9/Materials | Evolved 2 slots: Utility x2 484 | -9/Materials | Core integrity fell below 50% 526 | -9/Materials | Lost 6 parts (1p1n1u3w) 608 | -9/Materials | Discovered new exit (range 10) 624 | -9/Materials | Entered another Materials area 624 | -8/Materials | Evolved 2 slots: Utility x2 750 | -8/Materials | Core integrity fell below 50% 772 | -8/Materials | Core integrity fell below 20% 801 | -8/Materials | Lost 4 parts (2u2w) 891 | -8/Materials | Destroyed by Y-45 Defender with Beam Rifle Last Messages --------------- U-05 Engineer lays Concrete. G-50 Soldier destroyed. G-47 Trooper destroyed. U-05 Engineer lays Concrete. The unstable cave ceiling collapses. U-05 Engineer lays Concrete. U-05 Engineer builds a Door. Dropped Weight Redist. System. U-05 Engineer builds a Wall. U-05 Engineer destroyed. U-05 Engineer lays Concrete. U-05 Engineer destroyed. U-05 Engineer lays Concrete. Grenade Launcher destroyed. U-05 Engineer builds a Wall. U-05 Engineer lays Concrete. U-05 Engineer builds a Wall. U-05 Engineer lays Concrete. U-05 Engineer builds a Wall. The unstable cave ceiling collapses. Map ----- +----------------------------------------------------+ | ??????????????# #?# #?# / ?????? | | ??????????????## #?# #?# ?????? | | ??????????????## #### ### """ """ #????? | | ???????????##### # """ """ #????? | | ???????????+ / + """ """ #????? | | ???????????##### # #????? | | ??????????????## ## #????? | | ???????????????# / ## #????? | | ???????????????# ###+########????? | | ???????????????# #?# #???????????? | | ???????????????# #?# #???????????? | | ?????????????? =#?# #???????????? | | ?????????????###+#### #?# #??#####????? | | ????????????????????# #?# #?? = ????? | | ????????????????????# = ### #? ?????? | | ????????????????????# !%= #? ?????? | | ????????????????????# *%= # """ ???? | | ????????????????????# | # """ #??? | | ????????????????????# + """ #??? | | ????????????????????# # """ #??? | | ????????????????????####### # #??? | | ?????????????????####???# #!=#u = #??? | | ?????????????????# ### #g%* ##+####??? | | ?????????????????+ Y o % #???? | | ?????????????????# = #???? | | ?????????????????# / ##/@ ##+###???? | | ?????????????????####?# ## #?? | | ??????????????????????# #? """ """ ??? | | ??????????????????????# #? """ """???? | | ??????????????????????# #? """ ""????? | | ??????????????????????# ]] #? ? ?????? | | ??????????????????????# ]] #? ?????????? | | ??????????????????????# ] #?? ????????? | | ??????????????????????# #?? ?????????? | | ???????????????????????#####?????????????? | | | | | | | | | | | | | | | | | | | | | | | | | | | | | | | +----------------------------------------------------+ Best States ------------- Heat Dissipation 31 Energy Generation 14 Energy Capacity 350 Matter Stores 300 Matter Capacity 300 Sight Range 16 Terrain Scan Range 16 Terrain Scan Density 10 Additional Mass Support 6 Utility Shielding 33 Evasion (%) 41 Item Schematics ----------------- None Robot Schematics ------------------ None Fabricated ------------ Nothing Alien Tech Used ----------------- None Achievements -------------- None Challenges ------------ None Game ------ Seed MultitargetingSubatomicArray Manual? 0 Play Time 00:17:29 Cumulative 16.7 hours Start 2024.02.28 @ 08:45:15 End 2024.02.29 @ 06:52:10 Sessions 9 Manual Loads 0 Difficulty Rogue Special Mode None Game No. 36 Rogue 23 Adventurer 13 Explorer 0 Win Type - Total 0 Types 0/0/0/0/0/0/0/0/0 Lore% 14 Gallery% 19 Achievement% 15 Wizard Run 0 Options --------- Layout 1 ASCII 0 Keyboard 0 Movement Mouse Keybinds 0 Fullscreen 1 Font 24/Smallcaps Map View 50x35 Zoom Use 0% Tactical HUD 0 Map Filters NONE Filters NONE Steam 1 RUN: 47570de6-4a06-440f-9f78-920b99c7f9aa